fUST/lending_fUST_20250727
["ID","MTS","AMOUNT","RATE_DAILY","PERIOD"]
[375220107,1753589457086,-460.0,0.00021369,2]
[375220109,1753589457096,-460.0,0.00021369,2]
[375220111,1753589457105,-153.591479,0.00021369,2]
[375220113,1753589457115,-460.0,0.00021369,2]
[375220115,1753589457124,-177.44022149,0.00021369,2]
[375220120,1753589457159,-629.94977851,0.00021369,2]
[375220121,1753589457168,-1821.18,0.00021369,2]
[375220123,1753589457178,-460.0,0.00021369,2]
[375220126,1753589457187,-845.12,0.00021369,2]
[375220128,1753589457197,-151.0,0.00021369,2]
[375220130,1753589457207,-3066.41,0.00021369,2]
[375220132,1753589457216,-467.69,0.00021369,2]
[375220134,1753589457225,-559.97,0.00021369,2]
[375220136,1753589457235,-460.0,0.00021369,2]
[375220138,1753589457244,-460.0,0.00021369,2]
[375220140,1753589457254,-460.0,0.00021369,2]
[375220142,1753589457263,-526.95,0.00021369,2]
[375220144,1753589457272,-460.0,0.00021369,2]
[375220146,1753589457282,-792.91,0.00021369,2]
[375220148,1753589457291,-460.0,0.00021369,2]
[375220150,1753589457300,-152.995217,0.00021369,2]
[375220152,1753589457310,-151.0,0.00021369,2]
[375220154,1753589457320,-839.4,0.00021369,2]
[375220156,1753589457329,-151.0,0.00021369,2]
[375220158,1753589457339,-668.15,0.00021369,2]
[375220160,1753589457348,-460.0,0.00021369,2]
[375220162,1753589457358,-460.0,0.00021369,2]
[375220163,1753589457367,-333.38866103,0.00021369,2]
[375220166,1753589457377,-3.37982358,0.00021369,2]
[375221830,1753589557861,166.0,0.00017899,2]
[375221834,1753589698825,194.395888,0.00013699,2]
[375221835,1753589882165,24900.0,0.00017772,2]
[375221836,1753589945567,151.0,0.0001801,2]
[375221838,1753590106826,1071.310583,0.00017771,2]
[375221839,1753590188129,4418.96680816,0.00017771,2]
[375221840,1753590188158,5581.03319184,0.00017771,2]
[375221842,1753590301732,1186.90200348,0.0001801,2]
[375221843,1753590303194,24568.15635112,0.000168,2]
[375221845,1753590425123,-246.10201454,0.00018215,2]
[375221846,1753590425148,-623.05714936,0.0001855,3]
[375221847,1753590425167,-179.40119272,0.0001865,2]
[375221848,1753590425191,-140.66290174,0.00018699,2]
[375221850,1753590517099,3012.50542686,0.00018,2]
[375221851,1753590519484,1681.33197034,0.00018,2]
[375221856,1753590572473,166.0,0.00017813,2]
[375221867,1753590632419,-259.0692427,0.00018418,2]
[375221869,1753590632429,-288.29858319,0.00018418,2]
[375221871,1753590632439,-156.31162593,0.00018418,2]
[375221873,1753590632448,-160.0,0.00018771,2]
[375221875,1753590632458,-1200.0,0.00018777,2]
[375221877,1753590632468,-300.0,0.00018777,2]
[375221879,1753590632478,-161.66373279,0.00018777,2]
[375221880,1753590632489,-91587.98689559,0.00018778,2]
[375221881,1753590632499,-179.40119271,0.00018799,2]
[375221882,1753590632509,-150.0,0.00018894,2]
[375221883,1753590632518,-203.14734827,0.000189,2]
[375221885,1753590632527,-500.0,0.000189,2]
[375221887,1753590632537,-221.75500734,0.000189,2]
[375221889,1753590632546,-285.56438708,0.000189,2]
[375221890,1753590632556,-10436.48577441,0.00018901,2]
[375221891,1753590632566,-7536.13775933,0.00019078,2]
[375221892,1753590632575,-195.45862856,0.00019078,2]
[375221893,1753590632585,-530.19,0.00019168,3]
[375221894,1753590632594,-265.09,0.00019168,3]
[375221895,1753590632604,-220.91,0.00019168,3]
[375221896,1753590632615,-662.75,0.00019168,3]
[375221897,1753590632624,-504.36885659,0.00019173,2]
[375221898,1753590632635,-381.44856095,0.00019173,2]
[375221899,1753590632646,-500.0,0.00019173,2]
[375221900,1753590632655,-500.0,0.00019173,2]
[375221901,1753590632665,-532.93088371,0.00019173,2]
[375221902,1753590632675,-506.35363636,0.00019173,2]
[375221903,1753590632684,-262.0446373,0.00019173,2]
[375221904,1753590632695,-500.0,0.00019173,2]
[375221905,1753590632705,-500.0,0.00019173,2]
[375221906,1753590632716,-304.97620169,0.00019173,2]
[375221907,1753590632727,-500.0,0.00019173,2]
[375221908,1753590632736,-500.0,0.00019173,2]
[375221909,1753590632746,-221.90957448,0.00019173,2]
[375221910,1753590632755,-500.0,0.00019173,2]
[375221911,1753590632764,-500.0,0.00019173,2]
[375221912,1753590632774,-502.7340091,0.00019173,2]
[375221913,1753590632783,-460.0,0.00019178,2]
[375221914,1753590632792,-460.0,0.00019178,2]
[375221915,1753590632802,-460.0,0.00019178,2]
[375221916,1753590632812,-333.73888198,0.00019178,2]
[375221917,1753590632821,-460.0,0.00019178,2]
[375221918,1753590632830,-411.91320894,0.00019178,2]
[375221919,1753590632840,-460.0,0.00019178,2]
[375221920,1753590632852,-460.0,0.00019178,2]
[375221921,1753590632862,-460.0,0.00019178,2]
[375221922,1753590632872,-460.0,0.00019178,2]
[375221923,1753590632881,-461.33030066,0.00019178,2]
[375221924,1753590632891,-433.11448597,0.00019178,2]
[375221925,1753590632901,-460.0,0.00019178,2]
[375221926,1753590632910,-460.0,0.00019178,2]
[375221927,1753590632920,-460.0,0.00019178,2]
[375221928,1753590632929,-3966.99,0.00019178,2]
[375221929,1753590632938,-473.10527247,0.00019178,2]
[375221930,1753590632953,-460.0,0.00019178,2]
[375221931,1753590632962,-460.0,0.00019178,2]
[375221932,1753590632971,-460.0,0.00019178,2]
[375221933,1753590632980,-460.0,0.00019178,2]
[375221934,1753590632990,-524.24135239,0.00019178,2]
[375221935,1753590632999,-460.0,0.00019178,2]
[375221936,1753590633009,-460.0,0.00019178,2]
[375221937,1753590633018,-465.09298735,0.00019178,2]
[375221938,1753590633027,-460.0,0.00019178,2]
[375221939,1753590633037,-460.0,0.00019178,2]
[375221940,1753590633047,-553.20793542,0.00019178,2]
[375221941,1753590633057,-460.0,0.00019178,2]
[375221942,1753590633067,-563.98,0.00019178,2]
[375221943,1753590633076,-507.89140372,0.00019178,2]
[375221944,1753590633085,-460.0,0.00019178,2]
[375221945,1753590633094,-460.0,0.00019178,2]
[375221946,1753590633103,-460.0,0.00019178,2]
[375221947,1753590633112,-461.13259347,0.00019178,2]
[375221948,1753590633121,-460.0,0.00019178,2]
[375221949,1753590633130,-460.0,0.00019178,2]
[375221950,1753590633140,-460.0,0.00019178,2]
[375221951,1753590633149,-460.0,0.00019178,2]
[375221952,1753590633159,-460.0,0.00019178,2]
[375221953,1753590633168,-460.0,0.00019178,2]
[375221954,1753590633178,-460.0,0.00019178,2]
[375221955,1753590633191,-460.0,0.00019178,2]
[375221956,1753590633200,-460.0,0.00019178,2]
[375221957,1753590633210,-2055.59,0.00019178,2]
[375221958,1753590633219,-460.0,0.00019178,2]
[375221959,1753590633229,-460.0,0.00019178,2]
[375221960,1753590633238,-460.0,0.00019178,2]
[375221961,1753590633248,-460.0,0.00019178,2]
[375221962,1753590633257,-460.0,0.00019178,2]
[375221963,1753590633266,-460.0,0.00019178,2]
[375221964,1753590633276,-460.0,0.00019178,2]
[375221965,1753590633286,-460.2761484,0.00019178,2]
[375221966,1753590633295,-460.0,0.00019178,2]
[375221967,1753590633304,-460.0,0.00019178,2]
[375221968,1753590633314,-460.0,0.00019178,2]
[375221969,1753590633323,-460.0,0.00019178,2]
[375221970,1753590633333,-218.94040013,0.00019178,2]
[375221971,1753590633342,-460.0,0.00019178,2]
[375221972,1753590633351,-460.0,0.00019178,2]
[375221973,1753590633360,-460.0,0.00019178,2]
[375221974,1753590633370,-460.0,0.00019178,2]
[375221975,1753590633379,-460.0,0.00019178,2]
[375221976,1753590633388,-460.0,0.00019178,2]
[375221977,1753590633397,-460.0,0.00019178,2]
[375221978,1753590633407,-460.66035188,0.00019178,2]
[375221979,1753590633416,-463.45208699,0.00019178,2]
[375221980,1753590633425,-460.0,0.00019178,2]
[375221981,1753590633435,-460.0,0.00019178,2]
[375221982,1753590633444,-460.0,0.00019178,2]
[375221983,1753590633453,-460.0,0.00019178,2]
[375221984,1753590633463,-460.0,0.00019178,2]
[375221985,1753590633472,-461.50723167,0.00019178,2]
[375221986,1753590633481,-460.0,0.00019178,2]
[375221987,1753590633491,-460.0,0.00019178,2]
[375221988,1753590633501,-460.0,0.00019178,2]
[375221989,1753590633510,-460.0,0.00019178,2]
[375221990,1753590633519,-460.0,0.00019178,2]
[375221991,1753590633529,-460.0,0.00019178,2]
[375221992,1753590633538,-460.0,0.00019178,2]
[375221993,1753590633548,-460.0,0.00019178,2]
[375221994,1753590633557,-460.0,0.00019178,2]
[375221995,1753590633567,-460.0,0.00019178,2]
[375221996,1753590633576,-460.0,0.00019178,2]
[375221997,1753590633585,-460.0,0.00019178,2]
[375221998,1753590633595,-531.12,0.00019178,2]
[375221999,1753590633604,-460.0,0.00019178,2]
[375222000,1753590633614,-612.17,0.00019178,2]
[375222001,1753590633623,-553.78,0.00019178,2]
[375222002,1753590633633,-460.0,0.00019178,2]
[375222003,1753590633642,-460.0,0.00019178,2]
[375222004,1753590633651,-460.0,0.00019178,2]
[375222005,1753590633660,-460.0,0.00019178,2]
[375222006,1753590633670,-460.0,0.00019178,2]
[375222007,1753590633679,-460.0,0.00019178,2]
[375222008,1753590633688,-460.0,0.00019178,2]
[375222009,1753590633698,-460.0,0.00019178,2]
[375222010,1753590633707,-460.0,0.00019178,2]
[375222011,1753590633717,-460.0,0.00019178,2]
[375222012,1753590633726,-460.62508824,0.00019178,2]
[375222013,1753590633736,-460.0,0.00019178,2]
[375222014,1753590633745,-461.94666984,0.00019178,2]
[375222015,1753590633755,-460.0,0.00019178,2]
[375222016,1753590633764,-460.0,0.00019178,2]
[375222017,1753590633773,-460.0,0.00019178,2]
[375222018,1753590633783,-460.0,0.00019178,2]
[375222019,1753590633793,-460.0,0.00019178,2]
[375222020,1753590633802,-460.0,0.00019178,2]
[375222021,1753590633812,-567.33,0.00019178,2]
[375222022,1753590633822,-460.0,0.00019178,2]
[375222023,1753590633841,-460.0,0.00019178,2]
[375222024,1753590633852,-460.0,0.00019178,2]
[375222025,1753590633862,-813.09,0.00019178,2]
[375222026,1753590633871,-460.0,0.00019178,2]
[375222027,1753590633881,-460.0,0.00019178,2]
[375222028,1753590633891,-460.0,0.00019178,2]
[375222029,1753590633901,-460.0,0.00019178,2]
[375222030,1753590633911,-460.0,0.00019178,2]
[375222031,1753590633920,-460.0,0.00019178,2]
[375222032,1753590633930,-799.06,0.00019178,2]
[375222033,1753590633940,-460.0,0.00019178,2]
[375222034,1753590633950,-460.0,0.00019178,2]
[375222035,1753590633960,-460.0,0.00019178,2]
[375222036,1753590633970,-744.59,0.00019178,2]
[375222037,1753590633979,-460.0,0.00019178,2]
[375222038,1753590633988,-460.0,0.00019178,2]
[375222039,1753590633998,-460.0,0.00019178,2]
[375222040,1753590634007,-460.0,0.00019178,2]
[375222041,1753590634018,-462.67190162,0.00019178,2]
[375222042,1753590634027,-460.0,0.00019178,2]
[375222043,1753590634036,-460.0,0.00019178,2]
[375222044,1753590634046,-460.0,0.00019178,2]
[375222045,1753590634055,-460.0,0.00019178,2]
[375222046,1753590634065,-460.0,0.00019178,2]
[375222047,1753590634075,-460.0,0.00019178,2]
[375222048,1753590634085,-1565.89,0.00019178,2]
[375222049,1753590634094,-460.0,0.00019178,2]
[375222050,1753590634103,-469.30733775,0.00019178,2]
[375222051,1753590634112,-1224.01,0.00019178,2]
[375222052,1753590634122,-460.0,0.00019178,2]
[375222053,1753590634132,-460.0,0.00019178,2]
[375222054,1753590634141,-460.0,0.00019178,2]
[375222055,1753590634151,-460.0,0.00019178,2]
[375222056,1753590634160,-460.0,0.00019178,2]
[375222057,1753590634169,-460.0,0.00019178,2]
[375222058,1753590634179,-464.91665648,0.00019178,2]
[375222059,1753590634193,-460.0,0.00019178,2]
[375222060,1753590634203,-560.96,0.00019178,2]
[375222061,1753590634212,-460.0,0.00019178,2]
[375222062,1753590634223,-460.0,0.00019178,2]
[375222063,1753590634233,-460.0,0.00019178,2]
[375222064,1753590634242,-460.0,0.00019178,2]
[375222065,1753590634253,-460.0,0.00019178,2]
[375222066,1753590634266,-460.0,0.00019178,2]
[375222067,1753590634275,-460.0,0.00019178,2]
[375222068,1753590634285,-454.00162627,0.00019178,2]
[375222069,1753590634295,-460.0,0.00019178,2]
[375222070,1753590634304,-460.0,0.00019178,2]
[375222071,1753590634314,-460.0,0.00019178,2]
[375222072,1753590634324,-463.58819714,0.00019178,2]
[375222073,1753590634333,-460.0,0.00019178,2]
[375222074,1753590634500,-460.0,0.00019178,2]
[375222075,1753590634511,-460.0,0.00019178,2]
[375222076,1753590634521,-460.0,0.00019178,2]
[375222077,1753590634531,-460.0,0.00019178,2]
[375222078,1753590634541,-465.45,0.00019178,2]
[375222079,1753590634551,-460.0,0.00019178,2]
[375222080,1753590634560,-460.0,0.00019178,2]
[375222081,1753590634569,-460.0,0.00019178,2]
[375222082,1753590634579,-460.0,0.00019178,2]
[375222083,1753590634589,-460.0,0.00019178,2]
[375222084,1753590634598,-460.0,0.00019178,2]
[375222085,1753590634608,-460.0,0.00019178,2]
[375222086,1753590634618,-460.0,0.00019178,2]
[375222087,1753590634628,-698.94,0.00019178,2]
[375222088,1753590634637,-549.98,0.00019178,2]
[375222089,1753590634647,-460.0,0.00019178,2]
[375222090,1753590634656,-460.0,0.00019178,2]
[375222091,1753590634665,-460.0,0.00019178,2]
[375222092,1753590634675,-460.0,0.00019178,2]
[375222093,1753590634686,-460.0,0.00019178,2]
[375222094,1753590634696,-500.0,0.00019178,2]
[375222095,1753590634706,-460.0,0.00019178,2]
[375222096,1753590634715,-466.37920622,0.00019178,2]
[375222097,1753590634724,-460.0,0.00019178,2]
[375222098,1753590634734,-460.0,0.00019178,2]
[375222099,1753590634744,-460.0,0.00019178,2]
[375222100,1753590634753,-460.0,0.00019178,2]
[375222101,1753590634762,-460.0,0.00019178,2]
[375222102,1753590634774,-460.0,0.00019178,2]
[375222103,1753590634783,-460.0,0.00019178,2]
[375222104,1753590634792,-460.0,0.00019178,2]
[375222105,1753590634802,-465.81800316,0.00019178,2]
[375222106,1753590634812,-460.84340485,0.00019178,2]
[375222107,1753590634821,-460.0,0.00019178,2]
[375222108,1753590634832,-460.0,0.00019178,2]
[375222109,1753590634842,-721.36,0.00019178,2]
[375222110,1753590634851,-461.48766785,0.00019178,2]
[375222111,1753590634862,-626.61,0.00019178,2]
[375222112,1753590634871,-460.0,0.00019178,2]
[375222113,1753590634880,-460.0,0.00019178,2]
[375222114,1753590634889,-460.0,0.00019178,2]
[375222115,1753590634898,-460.0,0.00019178,2]
[375222116,1753590634908,-483.88,0.00019178,2]
[375222117,1753590634917,-460.0,0.00019178,2]
[375222118,1753590634926,-460.0,0.00019178,2]
[375222119,1753590634935,-199.5136134,0.00019178,2]
[375222120,1753590634944,-1798.5,0.00019178,2]
[375222121,1753590634954,-460.0,0.00019178,2]
[375222122,1753590634964,-460.0,0.00019178,2]
[375222123,1753590634973,-460.0,0.00019178,2]
[375222124,1753590634982,-460.0,0.00019178,2]
[375222125,1753590634991,-460.0,0.00019178,2]
[375222126,1753590635000,-460.0,0.00019178,2]
[375222127,1753590635010,-460.0,0.00019178,2]
[375222128,1753590635020,-460.0,0.00019178,2]
[375222129,1753590635029,-463.17452599,0.00019178,2]
[375222130,1753590635038,-563.0,0.00019178,2]
[375222131,1753590635049,-460.0,0.00019178,2]
[375222132,1753590635059,-460.0,0.00019178,2]
[375222133,1753590635068,-460.97126035,0.00019178,2]
[375222134,1753590635077,-460.0,0.00019178,2]
[375222135,1753590635086,-151.0,0.00019178,2]
[375222136,1753590635096,-460.0,0.00019178,2]
[375222137,1753590635105,-460.0,0.00019178,2]
[375222138,1753590635114,-460.0,0.00019178,2]
[375222139,1753590635123,-460.0,0.00019178,2]
[375222140,1753590635131,-554.37,0.00019178,2]
[375222141,1753590635140,-151.0,0.00019178,2]
[375222142,1753590635150,-151.0,0.00019178,2]
[375222143,1753590635159,-460.0,0.00019178,2]
[375222144,1753590635168,-460.0,0.00019178,2]
[375222145,1753590635177,-460.0,0.00019178,2]
[375222146,1753590635192,-151.0,0.00019178,2]
[375222147,1753590635201,-494.0,0.00019178,2]
[375222148,1753590635210,-460.0,0.00019178,2]
[375222149,1753590635223,-460.0,0.00019178,2]
[375222150,1753590635233,-500.0,0.00019178,2]
[375222151,1753590635242,-185.02,0.00019178,2]
[375222152,1753590635251,-152.53248083,0.00019178,2]
[375222153,1753590635261,-151.0,0.00019178,2]
[375222154,1753590635270,-281.93639202,0.00019178,2]
[375222155,1753590635279,-460.0,0.00019178,2]
[375222156,1753590635289,-460.0,0.00019178,2]
[375222157,1753590635300,-151.56244739,0.00019178,2]
[375222158,1753590635309,-460.0,0.00019178,2]
[375222159,1753590635319,-151.50902877,0.00019178,2]
[375222160,1753590635328,-451.66018113,0.00019178,2]
[375222161,1753590635338,-151.0,0.00019178,2]
[375222162,1753590635347,-153.32468803,0.00019178,2]
[375222163,1753590635356,-460.0,0.00019178,2]
[375222164,1753590635365,-500.0,0.00019178,2]
[375222165,1753590635375,-151.0,0.00019178,2]
[375222166,1753590635384,-460.0,0.00019178,2]
[375222167,1753590635393,-460.0,0.00019178,2]
[375222168,1753590635402,-500.0,0.00019178,2]
[375222169,1753590635411,-460.0,0.00019178,2]
[375222170,1753590635420,-460.0,0.00019178,2]
[375222171,1753590635430,-460.0,0.00019178,2]
[375222172,1753590635439,-460.0,0.00019178,2]
[375222173,1753590635448,-467.44,0.00019178,2]
[375222174,1753590635457,-460.0,0.00019178,2]
[375222175,1753590635466,-460.0,0.00019178,2]
[375222176,1753590635476,-461.50610712,0.00019178,2]
[375222177,1753590635485,-460.0,0.00019178,2]
[375222178,1753590635495,-460.0,0.00019178,2]
[375222179,1753590635505,-460.0,0.00019178,2]
[375222180,1753590635514,-460.0,0.00019178,2]
[375222181,1753590635523,-612.19,0.00019178,2]
[375222182,1753590635533,-685.63,0.00019178,2]
[375222183,1753590635543,-1001.59,0.00019178,2]
[375222184,1753590635553,-2363.51,0.00019178,2]
[375222185,1753590635563,-2434.89,0.00019178,2]
[375222186,1753590635572,-460.0,0.00019178,2]
[375222187,1753590635582,-460.0,0.00019178,2]
[375222188,1753590635591,-460.0,0.00019178,2]
[375222189,1753590635603,-672.54,0.00019178,2]
[375222190,1753590635615,-460.0,0.00019178,2]
[375222191,1753590635627,-460.0,0.00019178,2]
[375222192,1753590635637,-462.34877849,0.00019178,2]
[375222193,1753590635647,-460.0,0.00019178,2]
[375222194,1753590635657,-942.1,0.00019178,2]
[375222195,1753590635666,-1709.45,0.00019178,2]
[375222196,1753590635676,-460.0,0.00019178,2]
[375222197,1753590635686,-460.0,0.00019178,2]
[375222198,1753590635696,-460.0,0.00019178,2]
[375222199,1753590635706,-460.0,0.00019178,2]
[375222200,1753590635716,-460.0,0.00019178,2]
[375222201,1753590635726,-586.49,0.00019178,2]
[375222202,1753590635736,-460.0,0.00019178,2]
[375222203,1753590635746,-460.0,0.00019178,2]
[375222204,1753590635756,-460.0,0.00019178,2]
[375222205,1753590635765,-460.0,0.00019178,2]
[375222206,1753590635775,-460.0,0.00019178,2]
[375222207,1753590635786,-721.82,0.00019178,2]
[375222208,1753590635796,-460.0,0.00019178,2]
[375222209,1753590635806,-606.27,0.00019178,2]
[375222210,1753590635815,-460.0,0.00019178,2]
[375222211,1753590635825,-460.0,0.00019178,2]
[375222212,1753590635834,-460.0,0.00019178,2]
[375222213,1753590635844,-461.40628022,0.00019178,2]
[375222214,1753590635853,-2096.66,0.00019178,2]
[375222215,1753590635863,-460.0,0.00019178,2]
[375222216,1753590635873,-460.0,0.00019178,2]
[375222217,1753590635883,-962.53,0.00019178,2]
[375222218,1753590635893,-522.21,0.00019178,2]
[375222219,1753590635902,-460.0,0.00019178,2]
[375222220,1753590635911,-460.0,0.00019178,2]
[375222221,1753590635921,-1170.19,0.00019178,2]
[375222222,1753590635930,-304.38419017,0.00019178,2]
[375222223,1753590635940,-366.68452869,0.00019178,2]
[375222224,1753590635949,-460.0,0.00019178,2]
[375222225,1753590635960,-460.0,0.00019178,2]
[375222226,1753590635970,-244.79522955,0.00019178,2]
[375222227,1753590635979,-460.0,0.00019178,2]
[375222228,1753590635988,-460.0,0.00019178,2]
[375222229,1753590635997,-460.0,0.00019178,2]
[375222230,1753590636007,-370.40948069,0.00019178,2]
[375222231,1753590636017,-460.0,0.00019178,2]
[375222232,1753590636026,-460.0,0.00019178,2]
[375222233,1753590636035,-460.0,0.00019178,2]
[375222234,1753590636046,-543.10649564,0.00019178,2]
[375222235,1753590636055,-460.0,0.00019178,2]
[375222236,1753590636065,-460.0,0.00019178,2]
[375222237,1753590636074,-633.68,0.00019178,2]
[375222238,1753590636083,-460.0,0.00019178,2]
[375222239,1753590636093,-460.0,0.00019178,2]
[375222240,1753590636102,-460.0,0.00019178,2]
[375222241,1753590636111,-496.03,0.00019178,2]
[375222242,1753590636121,-460.0,0.00019178,2]
[375222243,1753590636130,-460.0,0.00019178,2]
[375222244,1753590636139,-1451.4,0.00019178,2]
[375222245,1753590636149,-460.0,0.00019178,2]
[375222246,1753590636158,-524.97918468,0.00019178,2]
[375222247,1753590636167,-460.0,0.00019178,2]
[375222248,1753590636176,-460.0,0.00019178,2]
[375222249,1753590636189,-217.16658376,0.00019178,2]
[375222250,1753590636200,-485.35,0.00019178,2]
[375222251,1753590636209,-500.0,0.00019178,2]
[375222252,1753590636218,-151.0,0.00019178,2]
[375222253,1753590636228,-460.0,0.00019178,2]
[375222254,1753590636237,-460.0,0.00019178,2]
[375222255,1753590636246,-151.0,0.00019178,2]
[375222256,1753590636256,-460.0,0.00019178,2]
[375222257,1753590636266,-151.0,0.00019178,2]
[375222258,1753590636275,-460.0,0.00019178,2]
[375222259,1753590636284,-460.0,0.00019178,2]
[375222260,1753590636293,-151.0,0.00019178,2]
[375222261,1753590636303,-461.31,0.00019178,2]
[375222262,1753590636313,-460.0,0.00019178,2]
[375222263,1753590636322,-461.22529213,0.00019178,2]
[375222264,1753590636331,-500.0,0.00019178,2]
[375222265,1753590636340,-500.0,0.00019178,2]
[375222266,1753590636350,-500.0,0.00019178,2]
[375222267,1753590636359,-500.0,0.00019178,2]
[375222268,1753590636368,-500.0,0.00019178,2]
[375222269,1753590636378,-500.0,0.00019178,2]
[375222270,1753590636387,-462.32236347,0.00019178,2]
[375222271,1753590636397,-500.0,0.00019178,2]
[375222272,1753590636406,-500.0,0.00019178,2]
[375222273,1753590636416,-286.76018713,0.00019178,2]
[375222274,1753590636425,-460.0,0.00019178,2]
[375222275,1753590636435,-221.08526565,0.00019178,2]
[375222276,1753590636444,-460.0,0.00019178,2]
[375222277,1753590636454,-1490.8,0.00019178,2]
[375222278,1753590636463,-758.3,0.00019178,2]
[375222279,1753590636472,-151.0,0.00019178,2]
[375222280,1753590636481,-460.0,0.00019178,2]
[375222281,1753590636491,-500.0,0.00019178,2]
[375222282,1753590636501,-460.0,0.00019178,2]
[375222283,1753590636510,-460.0,0.00019178,2]
[375222284,1753590636520,-731.53,0.00019178,2]
[375222285,1753590636529,-460.0,0.00019178,2]
[375222286,1753590636538,-460.0,0.00019178,2]
[375222287,1753590636551,-551.27,0.00019178,2]
[375222288,1753590636562,-460.0,0.00019178,2]
[375222289,1753590636573,-460.0,0.00019178,2]
[375222290,1753590636582,-489.77781074,0.00019178,2]
[375222291,1753590636591,-461.14643806,0.00019178,2]
[375222292,1753590636601,-460.0,0.00019178,2]
[375222293,1753590636610,-218.68448043,0.00019178,2]
[375222294,1753590636619,-460.0,0.00019178,2]
[375222295,1753590636628,-460.0,0.00019178,2]
[375222296,1753590636637,-460.0,0.00019178,2]
[375222297,1753590636645,-460.0,0.00019178,2]
[375222298,1753590636654,-460.0,0.00019178,2]
[375222299,1753590636664,-460.0,0.00019178,2]
[375222300,1753590636674,-460.0,0.00019178,2]
[375222301,1753590636683,-460.0,0.00019178,2]
[375222302,1753590636693,-460.0,0.00019178,2]
[375222303,1753590636702,-683.71,0.00019178,2]
[375222304,1753590636711,-460.0,0.00019178,2]
[375222305,1753590636721,-460.0,0.00019178,2]
[375222306,1753590636730,-460.0,0.00019178,2]
[375222307,1753590636739,-460.0,0.00019178,2]
[375222308,1753590636749,-733.24,0.00019178,2]
[375222309,1753590636758,-460.0,0.00019178,2]
[375222310,1753590636767,-634.01,0.00019178,2]
[375222311,1753590636777,-460.0,0.00019178,2]
[375222312,1753590636786,-685.87,0.00019178,2]
[375222313,1753590636796,-3510.95,0.00019178,2]
[375222314,1753590636806,-460.0,0.00019178,2]
[375222315,1753590636815,-460.0,0.00019178,2]
[375222316,1753590636824,-460.0,0.00019178,2]
[375222317,1753590636833,-460.0,0.00019178,2]
[375222318,1753590636843,-463.53835041,0.00019178,2]
[375222319,1753590636852,-460.0,0.00019178,2]
[375222320,1753590636861,-460.5371616,0.00019178,2]
[375222321,1753590636870,-752.7,0.00019178,2]
[375222322,1753590636879,-460.0,0.00019178,2]
[375222323,1753590636888,-621.07,0.00019178,2]
[375222324,1753590636898,-1141.83,0.00019178,2]
[375222325,1753590636907,-460.0,0.00019178,2]
[375222326,1753590636916,-460.0,0.00019178,2]
[375222327,1753590636925,-460.0,0.00019178,2]
[375222328,1753590636935,-460.0,0.00019178,2]
[375222329,1753590636944,-460.0,0.00019178,2]
[375222330,1753590636953,-461.21688422,0.00019178,2]